Cogmind - Beta 13 @@@ ROGUE MODE // 2024.07.05 @ 04:58:28 Player: Navi Result: Destroyed by G-34 Mercenary with Small Laser Performance ------------- Evolutions (0) 0 Regions Visited (1) 200 Robots Destroyed (6) 30 Value Destroyed (132) 132 Prototype IDs (0) 0 Alien Tech Used (0) 0 Bonus (0) 0 TOTAL SCORE: 362 Bonus ------- None Cogmind --------- Core Integrity 0/250 Matter 173/300 Energy 125/125 System Corruption 0% Temperature Cool (95) Movement Core (450) Ox8 Location -10/Materials Parts ------- > --- POWER (1) -------- Light Ion Engine > --- PROPULSION (2) --- (None) > --- UTILITY (2) ------ Large Storage Unit Weapon Shielding > --- WEAPON (2) ------- Light Assault Rifle > --- INVENTORY (15) --- Light Ion Engine Flight Unit Flight Unit Peak State ------------ > --- POWER ------------ Light Ion Engine > --- PROPULSION ------- Light Treads Light Treads > --- UTILITY ---------- Large Storage Unit Weapon Shielding > --- WEAPON ----------- EM Pulse Gun Medium Laser > --- INVENTORY -------- Light Ion Engine Flight Unit Flight Unit Light Assault Rifle [Rating: 7] Favorites ----------- Power Light Ion Engine Engine Light Ion Engine Propulsion Light Treads Treads Light Treads Flight Unit Flight Unit Utility Small Storage Unit Storage Small Storage Unit Protection Weapon Shielding Weapon Medium Laser Energy Gun Medium Laser Ballistic Gun Light Assault Rifle Build | -11 -10 ------- Run | Yrd Mat Slots Evolved . | . . Power . | . . Propulsion . | . . Utility . | . . Weapon . | . . Parts Attached 19 | 4 15 Power 1 | 1 . Engine 1 | 1 . Core . | . . Reactor . | . . Propulsion 6 | 2 4 Treads 4 | 2 2 Leg . | . . Wheel . | . . Hover . | . . Flight 2 | . 2 Utility 4 | 1 3 Device . | . . Storage 2 | 1 1 Processor . | . . Hackware . | . . Protection 2 | . 2 Artifact . | . . Weapon 8 | . 8 Energy Gun 5 | . 5 Energy Cannon . | . . Ballistic Gun 3 | . 3 Ballistic Cannon . | . . Launcher . | . . Special Weapon . | . . Impact Weapon . | . . Slashing Weapon . | . . Piercing Weapon . | . . Special Melee Weapon . | . . Unidentified Prototypes . | . . Parts Lost 4 | . 4 Power . | . . Propulsion 2 | . 2 Utility . | . . Weapon 2 | . 2 Highest Loss Streak 4 | . 4 To Critical Strikes . | . . Average Slot Usage (%) 72 | . 72 Engine 14 | . 14 Treads 17 | . 17 Flight 7 | . 7 Storage 14 | . 14 Protection 4 | . 4 Energy Gun 9 | . 9 Ballistic Gun 4 | . 4 Naked Turns . | . . Heaviest Build 28 | 8 28 Greatest Support 40 | 40 40 Greatest Overweight (x) 8 | . 8 Average Overweight (x) . | . . Largest Inventory Capacity 15 | 8 15 Average Capacity 9 | 6 10 Most Carried 8 | 4 8 Average Carried 4 | 2 5 Final Capacity 15 | 8 15 Final Carried 4 | 4 3 Class Distribution -------------------- 100% | Mutant Dominant Class ---------------- Mutant | -10/Materials Resources | -11 -10 ----------- Run | Yrd Mat Matter Collected 251 | 214 37 Remotely . | . . Salvage Created 155 | . 155 Parts 9 | . 9 Haulers Intercepted . | . . Recyclers Shooed 1 | . 1 Parts Field Recycled . | . . Retrieved Matter . | . . Parts Self-Destructed . | . . Prevented . | . . Kills | -11 -10 ------- Run | Yrd Mat Combat Hostiles Destroyed 6 | . 6 Guns 5 | . 5 Classes Destroyed 2 | . 2 Swarmer 3 | . 3 Grunt 3 | . 3 Best Kill Streak 3 | . 3 Combat Bots Only 3 | . 3 Max Kills in Single Turn 1 | . 1 Gunslinging . | . . Exploded . | . . Melee . | . . Uniques/NPCs Destroyed . | . . Combat | -11 -10 -------- Run | Yrd Mat Hostile Shots Fired 109 | . 109 Missed 31 | . 31 Damage Taken 780 | . 780 Core 253 | . 253 Absorbed by Shields . | . . Redirected to Shielding 30 | . 30 Core Remaining (%) 100 | 100 . Volleys Fired 28 | . 28 Largest 2 | . 2 Hottest 90 | . 90 Shots Fired 46 | . 46 Gun 46 | . 46 Cannon . | . . Launcher . | . . Special . | . . Kinetic 12 | . 12 Thermal 26 | . 26 Explosive . | . . Electromagnetic 8 | . 8 Robot Hit Streak 5 | . 5 Robot Miss Streak 7 | . 7 Penetration Max . | . . Secondary Targets 1 | . 1 Max Gunslinging Chain 1 | . 1 Shots Hit Robots 19 | . 19 Core Hits 8 | . 8 Critical Kills . | . . Critical Parts Destroyed . | . . Critical Strikes 3 | . 3 Burn 3 | . 3 Melee Attacks . | . . Impact . | . . Slashing . | . . Piercing . | . . Sneak Attacks . | . . Combat Hostiles . | . . Follow-up Attacks . | . . Damage Inflicted 286 | 6 280 Guns 280 | . 280 Cannons . | . . Explosions . | . . Melee . | . . Ramming 6 | 6 . Kinetic 38 | . 38 Thermal 165 | . 165 Explosive . | . . Electromagnetic 77 | . 77 Impact . | . . Slashing . | . . Piercing . | . . Highest Corruption . | . . Average Corruption . | . . Corruption Purged . | . . Corruption Blocked . | . . Overload Shots . | . . Overflow Damage . | . . Projectiles . | . . Explosions . | . . Melee . | . . Knockbacks . | . . Impact . | . . Kinetic . | . . Secondary . | . . Self-Inflicted Damage . | . . Shots . | . . Rammed 1 | 1 . Targets Rammed 1 | 1 . Kicked . | . . Crushed . | . . Highest Temperature 229 | . 229 Average Temperature 104 | . 104 Received Heat Transfer 306 | . 306 Siege Activations . | . . Robots Corrupted . | . . Combat Hostiles . | . . Parts Fried . | . . Impact Corruptions . | . . Robots Melted 1 | . 1 Combat Hostiles 1 | . 1 Parts Melted 4 | . 4 Heat Transferred 703 | . 703 Parts Sabotaged . | . . Parts Stolen . | . . Parts Stripped . | . . Power Chain Reactions . | . . Alert | -11 -10 ------- Run | Yrd Mat Peak Influence 70 | . 70 Initial . | . . Average 19 | . 28 Maximum Alert Level . | . . Low Security (%) 100 | 100 100 Level 1 . | . . Level 2 . | . . Level 3 . | . . Level 4 . | . . Level 5 . | . . High Security . | . . Max Security . | . . Squads Dispatched 3 | . 3 Investigation 1 | . 1 Extermination . | . . Reinforcement 2 | . 2 Assault . | . . Garrison . | . . Intercept . | . . Searches Triggered . | . . Construction Impeded . | . . Haulers Reinforced . | . . Active Scanning Responses . | . . Cargo Convoy Interrupts . | . . Stealth | -11 -10 --------- Run | Yrd Mat Distress Signals 1 | . 1 Communications Jammed . | . . Distress Signals . | . . Times Spotted 10 | . 10 Peak Tracking Total 4 | . 4 Tactical Retreats 1 | . 1 Traps | -11 -10 ------- Run | Yrd Mat Traps Triggered 1 | . 1 Indirectly . | . . Trap Hack Attempts . | . . Triggered . | . . Disarmed . | . . Reprogrammed . | . . Reused . | . . Traps Extracted . | . . Installed . | . . Triggered . | . . Machines | -11 -10 ---------- Run | Yrd Mat Machines Disabled . | . . Max in Single Turn . | . . Machines Repaired . | . . Machines Dismantled . | . . Machines Sabotaged . | . . Overloaded Fab Kills . | . . Hacking | -11 -10 --------- Run | Yrd Mat Machines Accessed 2 | . 2 Terminals 2 | . 2 Fabricators . | . . Repair Stations . | . . Recycling Units . | . . Scanalyzers . | . . Garrison Access . | . . Total Hacks 6 | . 6 Successful 4 | . 4 Failed 2 | . 2 Catastrophic . | . . Database Lockouts . | . . Manual . | . . Terminals 6 | . 6 Fabricators . | . . Repair Stations . | . . Recycling Units . | . . Scanalyzers . | . . Garrison Access . | . . Terminal Hacks 4 | . 4 Scanalyzer Index 1 | . 1 Alert Level 1 | . 1 Unreport Threat 1 | . 1 Surveillance Status 1 | . 1 Fabricator Hacks . | . . Repair Station Hacks . | . . Recycling Unit Hacks . | . . Scanalyzer . | . . Garrison Access Hacks . | . . Unauthorized Hacks . | . . Terminals . | . . Fabricators . | . . Repair Stations . | . . Recycling Units . | . . Scanalyzers . | . . Garrison Access . | . . Data Cores Recovered . | . . Used . | . . Hacking Detections 2 | . 2 Full Trace Events . | . . Feedback Events . | . . Feedback Blocked . | . . Robot Schematics Acquired . | . . Robots Built . | . . Authchips . | . . Time . | . . Total Robot Build Rating . | . . Part Schematics Acquired . | . . Parts Built . | . . Authchips . | . . Time . | . . Total Part Build Rating . | . . Parts Repaired . | . . Time . | . . Parts Recycled . | . . Recycled Matter . | . . Retrieved Matter . | . . Retrieved Components . | . . Parts Scanalyzed . | . . Part Schematics Acquired . | . . Parts Damaged . | . . Bothacking | -11 -10 ------------ Run | Yrd Mat Used RIF Installer . | . . Robots Hacked . | . . Non-combat . | . . Combat . | . . Robot Hacks Applied . | . . Relay Couplers Released . | . . Fabnet Peak Effective % . | . . Robots Rewired . | . . Allies Hacked . | . . Hacks Repelled . | . . Allies | -11 -10 -------- Run | Yrd Mat Total Allies . | . . Largest Group . | . . Highest-Rated Group . | . . Highest-Rated Ally . | . . Total Orders . | . . Ally Attacks . | . . Total Damage . | . . Kills . | . . Allies Corrupted . | . . Allies Melted . | . . Intel | -11 -10 ------- Run | Yrd Mat Robot Analysis Total . | . . Derelict Logs Recovered . | . . Drone Launches . | . . Drone Recoveries . | . . Exploration | -11 -10 ------------- Run | Yrd Mat Turns Passed 332 | 100 232 Spaces Moved 243 | 68 175 Core 20 | 19 1 Treads 95 | 49 46 Legs . | . . Wheels . | . . Hover . | . . Flight 128 | . 128 Fastest Speed 37 | 50 37 Average Speed 89 | 129 73 Slowest Speed 450 | 160 450 Overloaded Moves . | . . Propulsion Burnouts . | . . Robots Hopped 5 | . 5 Cave-ins Triggered . | . . Exploration Rate (%) 17 | 5 29 Regions Visited 1 Branch Regions . Pre-discovered Areas . | . . Known Exits Taken . | . . Unknown Exits Taken 1 | 1 . Scrap Searched . | . . Spaces Dug . | . . Terrain Destroyed . | . . Melee . | . . Projectile . | . . AOE . | . . Terrain Rammed . | . . Walls Destroyed . | . . Machines Disabled . | . . Actions | -11 -10 --------- Run | Yrd Mat Total 316 | 80 236 Wait . | . . Move 234 | 68 166 Hop 4 | . 4 Pick Up 18 | 8 10 Fast Attach . | . . Attach 15 | 4 11 Detach 6 | . 6 Swap 4 | . 4 Drop 7 | . 7 Fire 28 | . 28 Melee . | . . Ram . | . . Kick . | . . Crush . | . . Escape Stasis . | . . Rewire . | . . Trap . | . . Miscellaneous . | . . Route ------- -11/Scrapyard -10/Materials (discovered 1 exit: [*Mat]) History --------- Turn | Location | Event 6 | -11/Scrapyard | Discovered new exit (range 16) 101 | -11/Scrapyard | Entered Materials 251 | -10/Materials | Discovered new exit (range 15) 290 | -10/Materials | Core integrity fell below 50% 304 | -10/Materials | Build established: Mutant 320 | -10/Materials | Core integrity fell below 20% 333 | -10/Materials | Destroyed by G-34 Mercenary with Small Laser Last Messages --------------- 00300_ K-01 Serf collects debris. 00304_ EM Pulse Gun destroyed. 00305_ G-34 Mercenary heat damages Aluminum Leg. 00305_ K-01 Serf collects debris. 00309_ G-34 Mercenary heat short circuits Aluminum Leg. 00311_ G-34 Mercenary heat damages Broken Aluminum Leg, Sml. Laser, Heat Sink. 00311_ K-01 Serf collects debris. 00319_ R-06 Scavenger suffers critical hit (Burn). 00321_ K-01 Serf collects debris. 00323_ Lgt. Treads destroyed. 00324_ G-34 Mercenary heat spikes uncontrollably. 00324_ K-01 Serf collects debris. 00325_ G-34 Mercenary heat short circuits Aluminum Leg. 00325_ Med. Laser destroyed. 00326_ M-13 Machinist repairs G-34 Mercenary. 00327_ K-01 Serf collects debris. 00329_ T-07 Excavator destroyed. Map ----- +----------------------------------------------------+ | | | ?????????????????????????????????????????????????? | | ?????????????????????????????????????????????????? | | ?????????????????????????????????????????????????? | | ?????????????????????????????????????????????????? | | ?????????????????????????????????????????????????? | | ?????????????????????????????????????????????????? | | ?????????????????????????????????????????????????? | | ?????????????????????????????????????????????????? | | ?????????????????????????####???#????????????????? | | ????????????????????????? #?? ???????????????? | | ????????????????????????? < #? ???????????????? | | ????????????????????????# #? ????????????????? | | ????????????????????????+ # ?????????????????? | | ????????????????????????# # ??????????????????? | | ????????????????????????# + ???????????????????? | | ????????????????????????# #????????????????????? | | ?????????????????????#### #????????????????????? | | ????????????????????##![ #????????????????????? | | ????????????????????#! * #????????????????????? | | ????????????????????#! = m #############????????? | | ????????????????????#! g ????????? | | ????????????????????#! ????????? | | ????????????????????##! ????????? | | ?????????????????????#### = ##########???????????? | | ?????????????????########@% ## #?????????????? | | ?????????????????# # ! ## #?????????????? | | ?????????????????????" + ## #?????????????? | | ?????????????????????? # ## #?????????????? | | ????????????????????? !# ## #?????????????? | | ??????????????????#+##### ## ??????????????? | | ??????????????????# #??# ###+####????????????? | | ??????????????????# #??# #########????? | | ?????????????????## #??# T ?? | | ?????????????????? #??# #########????? | | ??????????????????# #??# ###+####????????????? | | ??????????????????# ########## #????????????? | | ??????????????????# + #????????????? | | ??????????????????# ########## """" #????????????? | | ??????????????????# #######??# """" #????????????? | | ??????????????????# # """ #??# """" #????????????? | | ??????????????????# # """ #??# #????????????? | | ????????########### # """ #############??????????? | | ????????# + # #??????????? | | ????????# [ # # "" #??????????? | | ????????# !! ##+#### """" T" #??????????? | | ????????## ! * #??# """" "" #??????????? | | ?????????# !! #??# """" #??????????? | | ?????????# #??# #??????????? | | ?????????+ #??# #??????????? | +----------------------------------------------------+ Best States ------------- Heat Dissipation 25 Energy Generation 10 Energy Capacity 125 Matter Stores 285 Matter Capacity 300 Sight Range 16 Terrain Scan Density 10 Weapon Shielding 33 Evasion (%) 62 Recoil Reduction 2 Item Schematics ----------------- None Robot Schematics ------------------ None Fabricated ------------ Nothing Alien Tech Used ----------------- None Achievements -------------- Storm Trooper Challenges ------------ None Game ------ Seed HeatIntegrityShredder Manual? 0 Play Time 00:16:24 Cumulative 2.1 hours Start 2024.07.05 @ 04:43:28 End 2024.07.05 @ 04:58:28 Sessions 1 Manual Loads 0 Difficulty Rogue Special Mode None Game No. 3 Rogue 2 Adventurer 1 Explorer 0 Win Type - Total 0 Types 0/0/0/0/0/0/0/0/0 Lore% 2 Gallery% 7 Achievement% 6 Wizard Run 0 Options --------- Layout 1 ASCII 0 Keyboard 0 Movement Arrows Keybinds 0 Fullscreen 1 Font 16/SmallcapsGlow Map View 55x38 Zoom Use 0% Tactical HUD 1 Map Filters NONE Filters NONE Steam 1 RUN: a4547e39-e0c5-4baf-9952-9f9b91ba49c9